bitfinex/quotes_ETHUSD_20220212
["timestamp","ask_amount","ask_price","bid_price","bid_amount"]
[1644700328727,0.00353489,2963.2,2962.1,0.1686]
[1644700328970,0.00983486,2962.4,2962.1,0.1686]
[1644700329373,0.00983486,2962.4,2962.1,3.44782647]
[1644700329571,0.00983486,2962.4,2962.2,1.0]
[1644700329770,0.00983486,2962.4,2962.2,1.3]
[1644700329970,0.17213489,2963.2,2962.1,3.44782647]
[1644700330173,0.00983486,2962.4,2962.1,0.1686]
[1644700330571,0.00983486,2962.4,2962.1,0.3]
[1644700330772,0.00983486,2962.4,2962.0,0.1686]
[1644700330973,0.00983486,2962.4,2962.0,1.1686]
[1644700331173,2.05499749,2963.2,2962.1,3.16065962]
[1644700331372,0.00983505,2962.3,2962.1,3.16065962]
[1644700331577,2.05416683,2963.2,2961.9,0.1686]
[1644700331776,1.41600423,2963.2,2961.9,0.1686]
[1644700332177,2.05416683,2963.2,2961.9,0.1686]
[1644700332377,1.88556683,2963.2,2961.9,0.1686]
[1644700332825,1.88556683,2963.2,2962.1,0.84374]
[1644700332826,1.24740423,2963.2,2962.1,0.84374]
[1644700333027,1.24740423,2963.2,2962.2,3.2734387]
[1644700333225,1.24740423,2963.2,2962.2,3.31219956]
[1644700333725,0.00421145,2962.9,2962.2,3.31219956]
[1644700334533,0.00421145,2962.9,2962.2,3.61219956]
[1644700334727,1.24740423,2963.2,2962.2,3.61219956]
[1644700334928,0.00421124,2962.9,2962.2,3.61219956]
[1644700335929,1.24740423,2963.2,2962.2,3.61219956]
[1644700336130,0.00421124,2962.9,2962.3,0.3]
[1644700336330,0.00421124,2962.9,2962.3,1.3]
[1644700336574,0.00421124,2962.9,2962.4,3.14919106]
[1644700337180,1.24740423,2963.2,2962.6,0.73479242]
[1644700337181,0.00270423,2963.2,2962.6,0.73479242]
[1644700337377,0.1686,2963.5,2962.6,0.73479242]
[1644700337378,0.00983627,2962.9,2962.7,3.985]
[1644700337577,0.00983627,2962.9,2962.8,3.5]
[1644700337777,0.00983627,2962.9,2962.8,1.785]
[1644700338176,0.00983627,2962.9,2962.8,0.785]
[1644700338377,0.00270423,2963.6,2962.8,1.785]
[1644700338378,0.64086683,2963.6,2962.8,1.785]
[1644700338575,0.00270423,2963.5,2963.1,0.83446511]
[1644700338774,0.00270423,2963.5,2963.2,0.485]
[1644700338976,0.00270423,2963.6,2963.2,0.485]
[1644700339177,0.6381626,2963.5,2963.2,0.485]
[1644700339577,0.6381626,2963.5,2963.3,3.16435464]
[1644700339781,0.00983544,2963.5,2963.3,3.16435464]
[1644700339976,0.00983544,2963.5,2963.3,4.02345464]
[1644700340220,0.00983544,2963.5,2963.4,3.1227015]
[1644700340819,0.6381626,2963.7,2963.4,3.9660815]
[1644700341018,0.00983525,2963.6,2963.4,3.1227015]
[1644700341418,0.00983525,2963.6,2963.2,1.89456236]
[1644700341620,0.00983525,2963.6,2963.2,1.21956236]
[1644700342020,0.6381626,2963.7,2963.2,0.485]
[1644700342221,0.00983535,2963.5,2963.3,3.20447019]
[1644700342422,0.00983535,2963.5,2963.3,3.16412507]
[1644700342920,0.00983535,2963.5,2963.4,0.485]
[1644700343122,0.00270423,2963.7,2963.4,0.485]
[1644700343321,0.6381626,2963.7,2963.4,0.485]
[1644700343521,0.00983535,2963.5,2963.4,0.785]
[1644700343721,0.00983535,2963.5,2963.4,4.3191703]
[1644700343722,1.44589977,2963.5,2963.4,4.3191703]
[1644700343974,1.44589977,2963.5,2963.4,2.085]
[1644700344378,1.43606442,2963.5,2963.4,5.22731601]
[1644700344575,0.64086683,2963.9,2963.4,5.22731601]
[1644700344576,1.43606442,2963.8,2963.4,5.22731601]
[1644700344775,1.43606442,2963.7,2963.4,5.22731601]
[1644700344979,1.43606442,2963.6,2963.4,5.22731601]
[1644700345176,0.00270423,2963.9,2963.5,3.13145161]
[1644700345376,1.43601871,2964.0,2963.6,1.0]
[1644700345576,1.43601871,2964.0,2963.6,1.3]
[1644700345776,0.00982908,2963.8,2963.6,1.3]
[1644700345978,1.43601871,2963.7,2963.6,1.3]
[1644700346177,1.43601871,2963.7,2963.6,0.3]
[1644700346378,1.43601871,2963.7,2963.4,0.485]
[1644700346982,1.43601871,2963.6,2963.1,0.4686]
[1644700347181,1.43601871,2963.6,2963.1,0.7686]
[1644700348226,1.44584845,2963.5,2963.1,0.7686]
[1644700348425,1.43601871,2963.4,2963.1,0.7686]
[1644700348823,1.43601871,2963.4,2963.1,1.7686]
[1644700349226,1.43601871,2963.4,2963.1,0.7686]
[1644700349429,0.00982993,2963.4,2963.1,0.7686]
[1644700349625,1.43601871,2963.3,2963.1,0.7686]
[1644700349826,1.43601871,2963.3,2963.1,1.7686]
[1644700350026,1.43601871,2963.3,2963.1,0.7686]
[1644700350631,1.43601871,2963.2,2962.7,0.00983234]
[1644700351672,1.43601871,2963.2,2962.3,3.5956]
[1644700351873,1.44855344,2963.1,2962.7,0.00983198]
[1644700352074,1.43601871,2963.0,2962.7,0.00983198]
[1644700352775,1.43601871,2963.0,2962.3,6.91645264]
[1644700352972,1.43601871,2963.0,2962.7,0.00983184]
[1644700352973,1.43601871,2962.9,2962.7,0.00983184]
[1644700353972,1.43601871,2962.9,2962.3,0.6]
[1644700354174,0.01253502,2962.9,2962.7,0.00983177]
[1644700354373,0.00983079,2962.9,2962.7,0.00983177]
[1644700355229,0.17130423,2963.4,2962.3,1.6]
[1644700355423,0.17130423,2963.4,2962.7,0.00983177]
[1644700355424,0.00983079,2962.9,2962.7,0.00983177]
[1644700356424,0.00270423,2963.3,2962.3,0.1686]
[1644700356628,0.00983079,2962.9,2962.7,0.00983177]
[1644700357727,0.00270423,2963.3,2962.3,0.1686]
[1644700357931,0.00983079,2962.9,2962.7,0.00983177]
[1644700358728,1.43631069,2962.8,2962.3,0.1686]
[1644700358973,0.00983079,2962.9,2962.7,0.00983177]
[1644700359176,1.43632976,2962.8,2962.7,0.00983177]
[1644700359976,1.43632976,2962.8,2962.3,0.1686]
[1644700360177,0.00983072,2962.9,2962.6,0.00983187]
[1644700360479,1.43902448,2962.8,2962.6,0.00983187]
[1644700360777,1.43632025,2962.8,2962.6,0.00983187]
[1644700361176,1.43632025,2962.8,2962.2,1.68729]
[1644700361376,1.43632025,2962.7,2962.2,1.68729]
[1644700361580,0.00270423,2962.8,2962.6,0.00983196]
[1644700361781,0.01966392,2962.5,2962.2,1.68729]
[1644700363821,0.01966392,2962.5,2962.2,1.69291888]
[1644700364821,0.01966392,2962.5,2962.3,0.3]
[1644700365625,0.01966392,2962.5,2962.2,1.99712262]
[1644700366024,0.01966392,2962.5,2962.2,1.98729]
[1644700366224,0.01966392,2962.5,2962.3,0.1686]
[1644700366875,0.01966392,2962.5,2962.3,0.4686]
[1644700367277,0.01966392,2962.5,2962.3,0.1686]
[1644700367478,0.01966392,2962.5,2962.3,0.47843253]
[1644700368076,0.01966392,2962.5,2962.4,1.32863]
[1644700368281,0.01966392,2962.5,2962.4,1.62863]
[1644700369877,0.01966392,2962.5,2962.4,1.79723]
[1644700373532,1.45595401,2962.5,2962.4,1.62863]
[1644700373975,1.45593507,2962.5,2962.4,0.785]
[1644700375578,0.01966392,2962.5,2962.4,0.785]
[1644700376178,1.45588024,2962.5,2962.4,0.785]
[1644700376378,1.45588024,2962.5,2962.4,0.485]
[1644700376784,1.45588024,2962.5,2962.2,1.68729]
[1644700376985,0.01966392,2962.5,2962.2,1.68729]
[1644700377186,0.01966392,2962.5,2962.3,0.00983243]
[1644700377383,0.01966392,2962.5,2962.4,0.84364]
[1644700377823,1.455905,2962.5,2962.4,0.84364]
[1644700379125,1.455905,2962.5,2962.3,1.00983243]
[1644700379327,1.43624108,2962.4,2962.3,1.3]
[1644700379524,1.43624108,2962.4,2962.3,0.00983243]
[1644700380523,1.43624108,2962.4,2961.8,0.485]
[1644700380725,1.43624108,2962.4,2962.2,0.00983262]
[1644700381678,1.43624108,2962.4,2961.8,0.785]
[1644700381679,1.43624108,2962.4,2961.8,0.485]
[1644700381881,1.43624108,2962.4,2962.2,0.00983272]
[1644700382680,0.01966543,2962.1,2961.6,0.4186]
[1644700382980,1.43624108,2962.0,2961.6,0.1686]
[1644700383379,0.01966543,2962.1,2961.6,0.1686]
[1644700384585,0.01966543,2962.1,2961.6,1.4686]
[1644700385225,0.01966543,2962.1,2961.6,0.4686]
[1644700385425,0.01966543,2962.1,2961.6,1.1686]
[1644700385724,0.01966543,2962.1,2961.6,0.1686]
[1644700385929,0.01966543,2962.1,2961.5,2.61271]
[1644700386426,0.01966543,2962.1,2961.6,1.0]
[1644700386633,0.01966543,2962.1,2961.7,0.00983367]
[1644700387631,0.01966543,2962.1,2961.6,0.1688]
[1644700387931,0.01966543,2962.1,2961.8,0.00983348]
[1644700388977,0.01966543,2962.1,2961.8,0.00983338]
[1644700389977,0.01966543,2962.1,2961.6,0.1688]
[1644700390378,0.01966543,2962.1,2961.8,0.00983338]
[1644700390580,1.43648934,2962.0,2961.8,0.00983338]
[1644700391179,1.43648934,2962.0,2961.2,19.75]
[1644700391379,2.11723645,2962.0,2961.2,20.05]
[1644700391583,1.43648934,2961.9,2961.8,0.00983348]
[1644700391785,1.43648934,2962.0,2961.8,0.00983348]
[1644700392383,1.43648934,2962.0,2961.2,20.04616233]
[1644700392826,2.19444252,2962.0,2961.8,0.00983348]
[1644700393027,1.43648934,2961.9,2961.8,0.00983348]
[1644700393727,1.43648934,2961.9,2961.2,20.04616233]
[1644700393928,1.43648934,2961.9,2961.7,0.00983357]
[1644700394728,0.01966543,2962.1,2961.7,0.00983357]
[1644700394927,1.43656274,2962.0,2961.3,0.1688]
[1644700395227,1.43656274,2962.0,2961.7,0.00983367]
[1644700396032,1.43656274,2962.0,2961.3,0.1688]
[1644700396231,1.43656274,2962.0,2961.7,0.00983357]
[1644700397291,1.43656274,2962.0,2961.5,1.68769]
[1644700397494,1.43656274,2962.0,2961.7,0.00983357]
[1644700398495,1.43656274,2962.0,2961.5,1.68769]
[1644700398692,1.43656274,2962.0,2961.7,0.00983357]
[1644700399694,1.43656274,2962.0,2961.5,1.68769]
[1644700399895,1.43656274,2962.0,2961.7,0.00983357]
[1644700400625,0.01966543,2962.1,2961.7,0.00983357]
[1644700400823,0.01966543,2962.1,2961.5,3.45649]
[1644700401022,0.01966543,2962.1,2961.5,2.45649]
[1644700401224,0.01966543,2962.1,2961.7,0.00983357]
[1644700401431,1.43653211,2962.0,2961.7,0.00983357]
[1644700401826,0.01966543,2962.1,2961.7,0.00983357]
[1644700402030,0.01966543,2962.1,2961.6,0.3]
[1644700402228,0.01966543,2962.1,2961.7,0.00983357]
[1644700402831,1.4365193,2962.0,2961.7,0.00983357]
[1644700403230,0.01966543,2962.1,2961.6,2.03735016]
[1644700403433,0.01966543,2962.1,2961.8,0.84383]
[1644700403633,0.01966543,2962.1,2961.9,0.485]
[1644700403982,0.02949468,2962.5,2962.0,0.1688]
[1644700404182,0.02949468,2962.5,2962.1,0.485]
[1644700404183,1.43631191,2962.4,2962.1,0.485]
[1644700404387,0.01966392,2962.5,2962.3,0.8435]
[1644700404589,0.84692858,2963.4,2962.7,1.687]
[1644700404787,0.03931816,2963.1,2962.7,0.1549886]
[1644700404988,1.43626069,2963.0,2962.7,0.1549886]
[1644700405788,1.43626069,2962.9,2962.7,0.1549886]
[1644700405989,1.43626069,2962.8,2962.7,0.1549886]
[1644700406391,1.43626069,2962.9,2962.6,0.485]
[1644700406689,0.00983069,2963.0,2962.6,0.485]
[1644700406690,1.43626069,2962.8,2962.6,0.485]
[1644700406989,1.43626069,2962.7,2962.6,0.485]
[1644700408231,0.00983107,2962.8,2962.2,1.68728]
[1644700408428,0.00983107,2962.8,2962.3,0.485]
[1644700408429,1.43626069,2962.7,2962.3,0.485]
[1644700409537,0.77771721,2963.2,2962.1,1.0]
[1644700409538,1.44609205,2962.6,2962.1,0.00983334]
[1644700409735,1.43626069,2962.5,2962.1,0.00983334]
[1644700410432,1.43626069,2962.5,2961.9,0.485]
[1644700410632,1.43626069,2962.5,2962.1,0.00983305]
[1644700410633,1.43626069,2962.4,2962.1,0.00983305]
[1644700411681,1.43626069,2962.4,2961.9,0.485]
[1644700411883,1.43626069,2962.3,2962.1,0.00983298]
[1644700412082,1.43626069,2962.2,2962.1,0.00983298]
[1644700412484,1.43640779,2962.2,2962.1,0.00983298]
[1644700412687,1.43640779,2962.4,2962.1,0.00983298]
[1644700412888,1.43640779,2962.4,2961.9,0.485]
[1644700413084,1.43640779,2962.3,2962.0,0.009833]
[1644700413283,1.43640779,2962.2,2962.0,0.009833]
[1644700413485,0.00983119,2962.5,2962.0,0.009833]
[1644700413684,1.4364277,2962.4,2962.0,0.009833]
[1644700414085,1.4364277,2962.4,2961.9,0.485]
[1644700414285,0.73402098,2962.7,2961.6,0.1686]
[1644700414286,1.4364277,2962.3,2962.1,0.00983291]
[1644700414485,1.4364277,2962.2,2962.1,0.00983291]
[1644700414887,1.4364277,2962.4,2962.1,0.00983291]
[1644700415085,1.4364277,2962.3,2962.1,0.00983291]
[1644700415329,5.77680301,2962.7,2961.6,1.1686]
[1644700415330,1.4364277,2962.2,2961.6,1.1686]
[1644700415535,0.00983133,2962.5,2962.3,0.01389454]
[1644700415731,1.4365439,2962.4,2962.3,0.01389454]
[1644700417834,1.3865439,2962.4,2962.3,0.01389454]
[1644700418133,0.00983148,2962.5,2962.3,0.01389454]
[1644700418834,0.80618203,2962.6,2962.3,0.01389454]
[1644700419082,0.00983155,2962.5,2962.3,0.01389454]
[1644700419788,0.63758203,2962.4,2962.3,0.01389454]
[1644700420391,1.4686,2962.4,2962.3,0.01389454]
[1644700420593,0.69327032,2961.6,2960.7,0.1686]
[1644700420790,0.69327032,2961.6,2960.2,0.135183]
[1644700420791,0.69327032,2961.6,2960.8,0.1688]
[1644700420990,0.69327032,2961.6,2960.3,0.1688]
[1644700421393,0.1688,2962.0,2960.4,2.17331]
[1644700421589,0.1688,2962.0,2960.5,3.46966977]
[1644700421890,0.1688,2962.0,2960.5,3.95466977]
[1644700422290,0.1688,2962.0,2960.5,3.83009419]
[1644700422495,0.84200534,2961.7,2960.5,3.83009419]
[1644700422734,0.84200534,2961.7,2960.7,0.84415]
[1644700423328,0.84200534,2961.7,2960.5,3.83009419]
[1644700423533,0.83765031,2961.7,2960.5,3.78733772]
[1644700423733,0.83765031,2961.7,2960.6,1.0]
[1644700423932,0.83765031,2961.7,2961.0,0.00984566]
[1644700424935,0.83765031,2961.7,2960.5,4.80736701]
[1644700425137,0.83765031,2961.7,2961.2,0.00984519]
[1644700425335,0.83765031,2961.7,2960.5,4.65098623]
[1644700425535,0.83765031,2961.7,2960.5,4.78803028]
[1644700425737,0.83765031,2961.7,2960.5,1.6538]
[1644700425937,0.83765031,2961.7,2960.5,3.78300037]
[1644700426136,0.83765031,2961.7,2960.5,3.79054652]
[1644700426339,0.83765031,2961.7,2960.7,0.02409823]
[1644700426585,0.83765031,2961.7,2960.8,0.1688]
[1644700427786,0.1688,2962.0,2960.8,0.1688]
[1644700427787,0.67084978,2961.2,2960.8,0.1688]
[1644700428185,0.1688,2962.0,2960.8,0.1688]
[1644700428384,1.1688,2962.0,2960.8,0.1688]
[1644700428787,0.00984271,2961.8,2960.9,0.00984585]
[1644700428986,0.17864271,2961.8,2960.9,0.00984585]
[1644700429686,0.82263885,2961.8,2960.8,0.1688]
[1644700429886,0.00922617,2961.8,2961.1,0.0092285]
[1644700430928,1.1719,2961.9,2960.8,1.7688]
[1644700431128,0.00922632,2961.8,2961.1,0.00922864]
[1644700431933,0.68737878,2961.6,2961.1,0.00922864]
[1644700432134,0.68737878,2961.6,2961.0,0.01252002]
[1644700432333,0.68737878,2961.6,2961.1,0.00922864]
[1644700432734,3.43782632,2961.8,2961.1,0.00922864]
[1644700433133,3.73782632,2961.8,2961.1,0.00922864]
[1644700433333,3.7286,2961.8,2961.0,0.01252002]
[1644700433536,3.73782632,2961.8,2961.1,0.00922864]
[1644700433735,0.64001816,2961.6,2961.1,0.00922864]
[1644700434580,0.1688,2961.5,2961.0,0.01252002]
[1644700434880,0.64001816,2961.6,2961.1,0.00926931]
[1644700435686,0.64001816,2961.6,2961.0,0.01252002]
[1644700435885,0.64001816,2961.6,2961.1,0.00926931]
[1644700436084,0.1688,2961.7,2961.1,0.00926931]
[1644700436485,0.1688,2961.7,2961.3,0.0124741]
[1644700437834,1.43690243,2961.6,2961.3,0.0124741]
[1644700438036,1.43690243,2961.5,2961.3,0.0124741]
[1644700438234,1.43690243,2961.4,2961.3,0.0124741]
[1644700438433,1.43690243,2961.6,2961.3,0.0124741]
[1644700438635,1.43690243,2961.5,2961.3,0.0124741]
[1644700438934,0.01347639,2961.2,2961.1,0.00926613]
[1644700439334,0.01347639,2961.2,2960.4,1.656]
[1644700439534,0.01347639,2961.2,2961.0,0.00926579]
[1644700440539,0.01347639,2961.2,2960.5,3.16194427]
[1644700440734,0.01347639,2961.2,2961.0,0.00926587]
[1644700441581,0.01347639,2961.2,2960.5,3.14857008]
[1644700441781,0.01347639,2961.2,2960.4,2.01522]
[1644700441983,0.01347639,2961.2,2961.0,0.0092662]
[1644700442782,0.01347639,2961.2,2960.4,2.31522]
[1644700442982,0.01347639,2961.2,2960.4,2.01522]
[1644700443186,0.01347639,2961.2,2961.0,0.0092662]
[1644700443984,0.01347639,2961.2,2960.6,1.0]
[1644700444185,0.01347639,2961.2,2960.6,1.3]
[1644700444385,0.01347639,2961.2,2961.0,0.0092662]
[1644700445237,0.01347639,2961.2,2960.8,1.44411]
[1644700445430,0.01347639,2961.2,2960.8,0.6]
[1644700445629,0.01347639,2961.2,2961.0,0.00926617]
[1644700446034,0.01347639,2961.2,2961.1,0.02185245]
[1644700451290,0.01347639,2961.2,2961.1,0.01141627]
[1644700451895,0.01347639,2961.2,2961.1,0.49641627]
[1644700452928,0.01347639,2961.2,2961.1,0.79641627]
[1644700453328,0.01347639,2961.2,2961.1,1.09641627]
[1644700455532,0.01347639,2961.2,2961.1,0.49641627]
[1644700456584,0.01347639,2961.2,2961.1,0.79641627]
[1644700458483,0.01347639,2961.2,2961.1,0.49641627]
[1644700458687,0.01347639,2961.2,2961.1,0.79641627]
[1644700459084,0.01347639,2961.2,2961.1,1.09641627]
[1644700461333,0.01347639,2961.2,2961.1,1.10696203]
[1644700462235,0.01347639,2961.2,2961.1,4.39309726]
[1644700462437,0.01347639,2961.2,2961.1,6.23711726]
[1644700463135,0.01215161,2961.2,2961.1,2.95098203]
[1644700463734,0.01215161,2961.2,2961.1,1.95098203]
[1644700463981,0.01215161,2961.2,2961.1,2.95098203]
[1644700464177,0.00832258,2961.2,2961.1,1.10696203]
[1644700464377,0.00832258,2961.2,2961.1,2.10696203]
[1644700464677,0.00832258,2961.2,2961.1,1.10696203]
[1644700466883,0.00832258,2961.2,2961.1,4.36484772]
[1644700467081,0.00832258,2961.2,2961.1,5.20886772]
[1644700467082,1.00832258,2961.2,2961.1,5.20886772]
[1644700467282,1.00832258,2961.2,2961.1,6.20886772]
[1644700467481,1.00832258,2961.2,2961.1,2.95098203]
[1644700467936,1.00832258,2961.2,2961.1,5.22890081]
[1644700468136,1.00832258,2961.2,2961.1,6.22890081]
[1644700468635,1.00832258,2961.2,2961.1,6.22798578]
[1644700469436,1.00832258,2961.2,2961.1,6.28588238]
[1644700469637,1.00832258,2961.2,2961.1,2.95098203]
[1644700469836,1.00832258,2961.2,2961.1,1.95098203]
[1644700470039,1.00832258,2961.2,2961.1,5.29404654]
[1644700470239,1.00832258,2961.2,2961.1,6.29404654]
[1644700471040,1.00832258,2961.2,2961.1,5.29404654]
[1644700471586,1.00832258,2961.2,2961.1,5.31643601]
[1644700472183,1.00832258,2961.2,2961.1,5.61643601]
[1644700472384,1.00832258,2961.2,2961.1,5.91643601]
[1644700472586,1.00832258,2961.2,2961.1,2.57290793]
[1644700472987,1.00832258,2961.2,2961.1,5.86692653]
[1644700473185,1.00832258,2961.2,2961.1,1.57290793]
[1644700473384,1.00832258,2961.2,2961.1,5.83750183]
[1644700473584,1.00832258,2961.2,2961.1,2.57290793]
[1644700473988,1.00832258,2961.2,2961.1,5.83427156]
[1644700474190,1.00832258,2961.2,2961.1,2.57290793]
[1644700474486,1.00832258,2961.2,2961.1,4.83739494]
[1644700474686,1.00832258,2961.2,2961.1,5.83739494]
[1644700475087,1.00832258,2961.2,2961.1,5.86862016]
[1644700475534,1.00832258,2961.2,2961.1,5.85082671]
[1644700475939,1.00832258,2961.2,2961.1,2.57290793]
[1644700476137,1.00832258,2961.2,2961.1,4.82979153]
[1644700476436,1.00832258,2961.2,2961.1,5.81928305]
[1644700478738,1.00832258,2961.2,2961.1,2.56239945]
[1644700478986,1.00832258,2961.2,2961.1,1.56239945]
[1644700479186,1.00832258,2961.2,2961.1,5.79699919]
[1644700479787,1.00832258,2961.2,2961.1,25.6239153]
[1644700479992,0.00926361,2961.8,2961.7,0.90347068]
[1644700480194,6.68522858,2962.8,2962.0,0.84371]
[1644700480195,0.80610389,2962.8,2962.0,0.84371]
[1644700480396,0.80610389,2962.8,2962.1,3.79490153]
[1644700480397,1.43647064,2962.7,2962.1,3.79490153]
[1644700480694,1.43647064,2962.6,2962.1,3.61958657]
[1644700480992,0.63730389,2962.8,2962.1,3.62283987]
[1644700480993,1.43647064,2962.5,2962.1,3.62283987]
[1644700481192,1.43647064,2962.4,2962.1,3.62283987]
[1644700481391,1.43647064,2962.3,2962.1,3.62923076]
[1644700481591,1.43647064,2962.3,2962.1,3.60803209]
[1644700481793,1.43647064,2962.3,2962.1,0.485]
[1644700481996,1.43647064,2962.3,2962.2,3.11478579]
[1644700482194,1.43647064,2962.3,2962.2,3.59978579]
[1644700482394,1.43647064,2962.3,2962.2,4.59978579]
[1644700483230,1.43647064,2962.3,2962.2,3.59978579]
[1644700483430,1.43647064,2962.3,2962.2,3.7272066]
[1644700483630,0.64083579,2962.9,2962.3,2.45]
[1644700483836,0.64083579,2962.9,2962.4,4.37010195]
[1644700483837,0.0035319,2962.9,2962.4,4.37010195]
[1644700484036,0.03704768,2962.8,2962.4,4.85510195]
[1644700484237,0.03704768,2962.8,2962.4,5.15510195]
[1644700484437,0.03704768,2962.8,2962.5,2.68674]
[1644700484640,0.03704768,2962.8,2962.6,4.05506065]
[1644700484835,0.0035319,2962.9,2962.7,4.46372598]
[1644700485036,0.1686,2963.1,2962.8,2.20524927]
[1644700485236,0.0035319,2963.0,2962.8,0.485]
[1644700485437,0.1686,2963.1,2962.8,0.485]
[1644700486235,0.1686,2963.1,2962.8,0.785]
[1644700486890,0.0035319,2963.3,2963.0,0.84345]
[1644700487090,3.194,2963.7,2963.1,0.485]
[1644700487091,0.0035319,2963.6,2963.1,0.485]
[1644700487295,5.003,2964.6,2963.2,1.6867]
[1644700487296,0.0035319,2963.4,2963.2,1.6867]
[1644700487490,0.0035319,2963.6,2963.3,0.485]
[1644700487688,0.84692858,2964.1,2963.3,0.485]
[1644700487689,0.02045421,2963.7,2963.3,0.485]
[1644700487889,0.01692231,2963.7,2963.3,0.785]
[1644700488089,0.01692231,2963.7,2963.3,0.485]
[1644700488490,0.64083579,2963.8,2963.3,0.485]
[1644700488790,0.64083579,2963.8,2963.4,4.34322]
[1644700488791,0.0098348,2963.6,2963.4,4.34322]
[1644700488989,0.0098348,2963.6,2963.4,0.84322]
[1644700489190,0.0098348,2963.6,2963.5,0.485]
[1644700489590,0.0098348,2963.6,2963.5,3.64242163]
[1644700489792,0.0035319,2963.9,2963.5,4.67662515]
[1644700489989,0.00425822,2963.7,2963.5,3.67662515]
[1644700490238,0.00425822,2963.7,2963.5,0.485]
[1644700490931,0.0035319,2963.9,2963.5,0.485]
[1644700491231,0.00425821,2963.7,2963.5,0.485]
[1644700492036,0.0035319,2963.9,2963.5,0.485]
[1644700492234,0.63730389,2964.0,2963.5,0.485]
[1644700492438,0.00425821,2963.7,2963.5,0.485]
[1644700493234,0.64083579,2964.0,2963.5,0.485]
[1644700493435,0.63730389,2964.1,2963.5,0.485]
[1644700493634,0.00986498,2963.7,2963.5,0.485]
[1644700494591,0.0035319,2964.0,2963.5,0.485]
[1644700494793,0.00986498,2963.7,2963.5,0.485]
[1644700495395,0.00986498,2963.7,2963.3,0.01376921]
[1644700495794,0.0035319,2963.9,2963.3,0.01376921]
[1644700495994,0.00986517,2963.6,2963.3,0.01376921]
[1644700496395,0.00986517,2963.6,2963.2,0.485]
[1644700496598,0.00986517,2963.6,2963.2,1.32844]
[1644700496999,0.64083579,2963.9,2963.2,1.32844]
[1644700497301,0.00986536,2963.5,2962.9,1.0]
[1644700497737,0.00986536,2963.5,2962.9,1.3]
[1644700498130,0.64083579,2963.7,2962.8,3.9335]
[1644700498131,0.0035319,2963.7,2962.8,3.9335]
[1644700498331,0.63730389,2963.8,2962.8,3.9335]
[1644700498332,0.00923247,2963.3,2962.8,3.9335]
[1644700499333,0.64083579,2963.8,2962.8,4.2335]
[1644700499633,0.00923272,2963.2,2962.8,4.2335]
[1644700500234,0.00923272,2963.2,2962.9,3.18447136]
[1644700500434,0.0035319,2963.8,2962.9,3.18447136]
[1644700500637,0.0035319,2963.8,2963.0,0.84349]
[1644700500836,0.00923281,2963.1,2963.0,0.84349]
[1644700501335,0.00923281,2963.1,2962.8,0.6536]
[1644700501790,0.03692448,2963.7,2962.8,0.6536]
[1644700501791,0.63730389,2963.7,2962.8,0.6536]
[1644700501989,0.63730389,2963.7,2962.5,0.1686]
[1644700501990,0.00927566,2963.1,2962.5,0.1686]
[1644700502189,0.00927566,2963.1,2962.4,4.42367]
[1644700502489,0.00927566,2963.1,2962.4,1.32867]
[1644700502691,0.00927566,2963.1,2962.4,0.485]
[1644700502888,0.80590389,2963.6,2962.4,0.485]
[1644700502889,0.80943579,2963.6,2962.4,0.485]
[1644700503090,0.00927584,2962.9,2962.4,0.485]
[1644700503890,0.00927584,2962.9,2962.5,0.84363]
[1644700504092,0.80943579,2963.6,2962.5,0.84363]
[1644700504292,0.0092757,2962.9,2962.5,0.84363]
[1644700504894,0.0092757,2962.9,2962.4,0.485]
[1644700505234,1.43628015,2962.8,2962.4,0.485]
[1644700505432,1.43628015,2962.8,2962.4,0.6536]
[1644700505632,0.00927283,2962.9,2962.4,0.6536]
[1644700505834,1.43626593,2962.8,2962.4,0.6536]
[1644700506032,1.43626593,2962.8,2962.4,0.485]
[1644700506635,0.0035319,2963.3,2962.4,0.485]
[1644700506836,0.00927276,2962.9,2962.4,0.485]
[1644700507035,1.43628379,2962.8,2962.4,0.485]
[1644700507936,1.43628379,2962.7,2962.4,0.485]
[1644700508135,0.00927276,2962.9,2962.4,0.485]
[1644700508437,1.43633009,2962.8,2962.4,0.485]
[1644700509087,0.0035319,2963.3,2962.4,0.485]
[1644700509088,0.00927296,2962.9,2962.4,0.485]
[1644700509288,0.61597788,2962.6,2962.5,0.84364]
[1644700510888,0.61597788,2962.6,2962.3,0.17787478]
[1644700511088,0.61597788,2962.6,2962.3,0.00927478]
[1644700511291,0.61597788,2962.6,2962.3,1.0]
[1644700511491,0.61597788,2962.6,2962.3,1.85285477]
[1644700512095,0.61597788,2962.6,2962.4,0.3]
[1644700513132,0.61597788,2962.6,2962.3,0.00929283]
[1644700513734,0.61597788,2962.6,2962.2,3.6423556]
[1644700513934,0.61597788,2962.6,2962.3,0.17789289]
[1644700514234,0.30798894,2962.6,2962.3,0.17789289]
[1644700514432,0.00929086,2962.9,2962.3,0.17789289]
[1644700514632,0.61597788,2962.4,2962.3,0.17789289]
[1644700514833,0.61597788,2962.4,2962.3,0.1686]
[1644700515232,0.61597788,2962.4,2962.3,0.17367324]
[1644700516134,0.61597788,2962.4,2962.3,0.1686]
[1644700517389,0.61597788,2962.4,2962.1,0.84374]
[1644700517591,0.61597788,2962.4,2962.2,0.00929593]
[1644700518191,0.61597788,2962.4,2962.2,3.25194298]
[1644700518391,0.00929359,2962.9,2962.4,3.9]
[1644700518589,0.0035319,2963.1,2962.5,4.95057195]
[1644700518790,0.00929352,2962.9,2962.5,5.25057195]
[1644700518988,0.00929352,2962.9,2962.6,1.0]
[1644700519191,0.00929352,2962.9,2962.7,3.77614321]
[1644700519788,0.0035319,2963.3,2962.7,3.77614321]
[1644700519988,0.00927751,2962.9,2962.7,3.77614321]
[1644700520234,0.00927751,2962.9,2962.7,0.485]
[1644700521033,0.0035319,2963.3,2962.7,0.485]
[1644700521235,0.00927751,2962.9,2962.7,0.485]
[1644700521436,1.43618342,2962.8,2962.7,0.485]
[1644700522240,0.97,2962.6,2962.4,1.68711]
[1644700522439,0.97,2962.6,2962.5,0.485]
[1644700523040,2.40624889,2962.6,2962.5,0.485]
[1644700524285,0.97,2962.6,2962.5,0.485]
[1644700524487,2.40625446,2962.6,2962.5,0.485]
[1644700525688,2.40625446,2962.6,2962.5,0.50314082]
[1644700526489,2.40625446,2962.6,2962.5,3.65714845]
[1644700526889,2.40625446,2962.6,2962.5,3.67370694]
[1644700527290,2.40625446,2962.6,2962.5,4.67370694]
[1644700527490,2.40625446,2962.6,2962.5,2.10314082]